[Event "*** Titled Tuesday Blitz"]
[Site "Chess.com"]
[Date "2021.04.06"]
[Round "7"]
[White "Chessbard1972"]
[Black "Ave_Mariia"]
[Result "0-1"]
[WhiteElo "2326"]
[BlackElo "2470"]
[TimeControl "180+1"]
[EndTime "11:18:38 PDT"]
[Termination "Ave_Mariia won by checkmate"]

1. e4 {[%clk 0:03:00.9]} 1... c5 {[%clk 0:03:00]} 2. Nf3 {[%clk 0:02:59]} 2...
d6 {[%clk 0:03:00.5]} 3. d4 {[%clk 0:02:59.5]} 3... cxd4 {[%clk 0:03:01.4]} 4.
Nxd4 {[%clk 0:03:00]} 4... Nf6 {[%clk 0:03:01.9]} 5. Nc3 {[%clk 0:03:00.2]} 5...
g6 {[%clk 0:03:02.5]} 6. Be2 {[%clk 0:02:58.5]} 6... Bg7 {[%clk 0:03:02.6]} 7.
O-O {[%clk 0:02:58.6]} 7... Nc6 {[%clk 0:03:03.1]} 8. Nb3 {[%clk 0:02:58.4]}
8... O-O {[%clk 0:03:03.2]} 9. Kh1 {[%clk 0:02:57.5]} 9... Be6 {[%clk
0:03:00.7]} 10. Bg5 {[%clk 0:02:56]} 10... Rc8 {[%clk 0:02:57.2]} 11. f4 {[%clk
0:02:55.4]} 11... a6 {[%clk 0:02:42.8]} 12. a4 {[%clk 0:02:52.8]} 12... Na5
{[%clk 0:02:41.7]} 13. f5 {[%clk 0:02:49.3]} 13... Bc4 {[%clk 0:02:34.4]} 14.
Bd3 {[%clk 0:02:49.3]} 14... Nxb3 {[%clk 0:02:23.9]} 15. cxb3 {[%clk 0:02:45.9]}
15... Bxd3 {[%clk 0:02:24]} 16. Qxd3 {[%clk 0:02:46]} 16... Nd7 {[%clk 0:02:17]}
17. Nd5 {[%clk 0:02:43.9]} 17... Re8 {[%clk 0:02:09.7]} 18. Rad1 {[%clk
0:02:29.9]} 18... Ne5 {[%clk 0:01:52.3]} 19. Qd2 {[%clk 0:02:23.5]} 19... f6
{[%clk 0:01:45.8]} 20. Be3 {[%clk 0:02:18.9]} 20... Rc6 {[%clk 0:01:13.9]} 21.
a5 {[%clk 0:02:11.1]} 21... e6 {[%clk 0:01:08.4]} 22. Nb6 {[%clk 0:02:03.8]}
22... Qc7 {[%clk 0:01:04.5]} 23. Rc1 {[%clk 0:01:58.2]} 23... exf5 {[%clk
0:01:00.9]} 24. exf5 {[%clk 0:01:54.6]} 24... Rxc1 {[%clk 0:00:57.1]} 25. Rxc1
{[%clk 0:01:52]} 25... Nc6 {[%clk 0:00:57.1]} 26. Bf4 {[%clk 0:01:41.9]} 26...
Qe7 {[%clk 0:00:52.9]} 27. h3 {[%clk 0:01:34.4]} 27... Qe4 {[%clk 0:00:47.2]}
28. Qd5+ {[%clk 0:01:28.9]} 28... Qxd5 {[%clk 0:00:42.7]} 29. Nxd5 {[%clk
0:01:28.4]} 29... Re2 {[%clk 0:00:43.2]} 30. Bxd6 {[%clk 0:01:05.7]} 30... Rxb2
{[%clk 0:00:38]} 31. b4 {[%clk 0:01:00.3]} 31... gxf5 {[%clk 0:00:35.1]} 32.
Ne7+ {[%clk 0:00:47.7]} 32... Kf7 {[%clk 0:00:34.8]} 33. Nxc6 {[%clk 0:00:47.2]}
33... bxc6 {[%clk 0:00:32.6]} 34. Rxc6 {[%clk 0:00:47.2]} 34... Bh6 {[%clk
0:00:27]} 35. Rxa6 {[%clk 0:00:44.9]} 35... Bd2 {[%clk 0:00:22.9]} 36. Rb6
{[%clk 0:00:42.7]} 36... f4 {[%clk 0:00:19.7]} 37. a6 {[%clk 0:00:37.9]} 37...
Be3 {[%clk 0:00:19.7]} 38. Rb7+ {[%clk 0:00:32.2]} 38... Ke6 {[%clk 0:00:19.5]}
39. Bc7 {[%clk 0:00:07]} 39... Rb1+ {[%clk 0:00:18]} 40. Kh2 {[%clk 0:00:06.9]}
40... Bg1+ {[%clk 0:00:17]} 41. Kh1 {[%clk 0:00:06.8]} 41... Bf2+ {[%clk
0:00:16.8]} 42. Kh2 {[%clk 0:00:04.8]} 42... Bg3# {[%clk 0:00:17.2]} 0-1

[Event "*** Titled Tuesday Blitz"]
[Site "Chess.com"]
[Date "2021.04.06"]
[Round "7"]
[White "NishaOnYoutube"]
[Black "PowerThinking2650"]
[Result "1-0"]
[WhiteElo "2272"]
[BlackElo "2378"]
[TimeControl "180+1"]
[EndTime "11:18:39 PDT"]
[Termination "NishaOnYoutube won by checkmate"]

1. e4 {[%clk 0:03:00.9]} 1... e5 {[%clk 0:02:59.4]} 2. Nf3 {[%clk 0:03:00.5]}
2... Nc6 {[%clk 0:02:55.7]} 3. Nc3 {[%clk 0:03:00.6]} 3... Nf6 {[%clk
0:02:54.9]} 4. Bb5 {[%clk 0:03:00.6]} 4... Bb4 {[%clk 0:02:49.1]} 5. O-O {[%clk
0:02:59.8]} 5... O-O {[%clk 0:02:44]} 6. d3 {[%clk 0:03:00.1]} 6... d6 {[%clk
0:02:44.3]} 7. Ne2 {[%clk 0:03:00.2]} 7... Ne7 {[%clk 0:02:43.4]} 8. c3 {[%clk
0:03:00.1]} 8... Ba5 {[%clk 0:02:42.4]} 9. Ng3 {[%clk 0:03:00.7]} 9... Ng6
{[%clk 0:02:42.7]} 10. h3 {[%clk 0:02:58.6]} 10... c6 {[%clk 0:02:42.3]} 11. Ba4
{[%clk 0:02:58.6]} 11... d5 {[%clk 0:02:36.3]} 12. Re1 {[%clk 0:02:44.4]} 12...
Bc7 {[%clk 0:02:15.3]} 13. Bb3 {[%clk 0:02:23.2]} 13... Re8 {[%clk 0:02:05.5]}
14. Bg5 {[%clk 0:02:22.4]} 14... Be6 {[%clk 0:02:01.2]} 15. Nh5 {[%clk
0:02:18.5]} 15... dxe4 {[%clk 0:01:26.1]} 16. Bxf6 {[%clk 0:01:45.5]} 16... gxf6
{[%clk 0:01:24.5]} 17. dxe4 {[%clk 0:01:21.1]} 17... Qe7 {[%clk 0:00:51.1]} 18.
Nh2 {[%clk 0:01:03.5]} 18... f5 {[%clk 0:00:29.7]} 19. Qf3 {[%clk 0:00:34.9]}
19... f4 {[%clk 0:00:23.7]} 20. Bxe6 {[%clk 0:00:29.3]} 20... fxe6 {[%clk
0:00:20.2]} 21. Ng4 {[%clk 0:00:29.2]} 21... Kh8 {[%clk 0:00:20.2]} 22. Nh6
{[%clk 0:00:27.3]} 22... Rf8 {[%clk 0:00:18.5]} 23. Qg4 {[%clk 0:00:24.5]} 23...
Bb6 {[%clk 0:00:16.8]} 24. Rf1 {[%clk 0:00:22.4]} 24... Rad8 {[%clk 0:00:16.6]}
25. Rad1 {[%clk 0:00:19.8]} 25... Qh4 {[%clk 0:00:15.5]} 26. Qxh4 {[%clk
0:00:17.5]} 26... Nxh4 {[%clk 0:00:14.7]} 27. Rxd8 {[%clk 0:00:16.8]} 27... Bxd8
{[%clk 0:00:14.6]} 28. Ng4 {[%clk 0:00:14.4]} 28... f3 {[%clk 0:00:11.4]} 29. g3
{[%clk 0:00:12]} 29... Ng6 {[%clk 0:00:11.4]} 30. Rd1 {[%clk 0:00:09.1]} 30...
Bb6 {[%clk 0:00:11.2]} 31. Rd7 {[%clk 0:00:08.4]} 31... Rd8 {[%clk 0:00:08.3]}
32. Rxb7 {[%clk 0:00:05.9]} 32... Rd1+ {[%clk 0:00:06.8]} 33. Kh2 {[%clk
0:00:06.2]} 33... h6 {[%clk 0:00:06.8]} 34. Nhf6 {[%clk 0:00:05.1]} 34... Bxf2
{[%clk 0:00:04]} 35. Rh7# {[%clk 0:00:04.8]} 1-0

[Event "*** Titled Tuesday Blitz"]
[Site "Chess.com"]
[Date "2021.04.06"]
[Round "7"]
[White "Ranindu2003"]
[Black "hansen"]
[Result "0-1"]
[WhiteElo "2588"]
[BlackElo "2828"]
[TimeControl "180+1"]
[EndTime "11:18:40 PDT"]
[Termination "hansen won on time"]

1. e4 {[%clk 0:03:00.9]} 1... c5 {[%clk 0:03:00]} 2. Nf3 {[%clk 0:03:00.8]} 2...
e6 {[%clk 0:02:59.6]} 3. d4 {[%clk 0:03:01]} 3... cxd4 {[%clk 0:03:00.5]} 4.
Nxd4 {[%clk 0:03:01.9]} 4... a6 {[%clk 0:03:01.4]} 5. c4 {[%clk 0:03:00.6]} 5...
Nf6 {[%clk 0:03:01.9]} 6. Nc3 {[%clk 0:02:57.2]} 6... Qc7 {[%clk 0:03:02.3]} 7.
a3 {[%clk 0:02:53.9]} 7... Nc6 {[%clk 0:03:02.8]} 8. Be3 {[%clk 0:02:53.3]} 8...
d6 {[%clk 0:03:03.2]} 9. f3 {[%clk 0:02:52.7]} 9... Be7 {[%clk 0:03:03.8]} 10.
g4 {[%clk 0:02:51.9]} 10... O-O {[%clk 0:03:04.5]} 11. Rc1 {[%clk 0:02:51.6]}
11... Ne5 {[%clk 0:03:04.1]} 12. g5 {[%clk 0:02:42.8]} 12... Nfd7 {[%clk
0:03:03.7]} 13. f4 {[%clk 0:02:43.2]} 13... Nc6 {[%clk 0:03:03.8]} 14. Kd2
{[%clk 0:02:36.9]} 14... Nxd4 {[%clk 0:02:59.2]} 15. Bxd4 {[%clk 0:02:37.8]}
15... e5 {[%clk 0:03:00.1]} 16. Be3 {[%clk 0:02:36]} 16... exf4 {[%clk
0:03:00.2]} 17. Bxf4 {[%clk 0:02:36.9]} 17... Ne5 {[%clk 0:03:00.6]} 18. Nd5
{[%clk 0:02:33.5]} 18... Qd8 {[%clk 0:03:00.8]} 19. h4 {[%clk 0:02:18.7]} 19...
Be6 {[%clk 0:03:00.3]} 20. Kc2 {[%clk 0:02:16.1]} 20... b5 {[%clk 0:02:48.5]}
21. c5 {[%clk 0:01:59.1]} 21... Rc8 {[%clk 0:01:41.9]} 22. Kb1 {[%clk
0:01:56.3]} 22... Bxd5 {[%clk 0:01:37.5]} 23. Qxd5 {[%clk 0:01:39]} 23... Ng6
{[%clk 0:01:37.6]} 24. Bxd6 {[%clk 0:01:26.2]} 24... Bxd6 {[%clk 0:01:37.4]} 25.
cxd6 {[%clk 0:01:10.9]} 25... Rxc1+ {[%clk 0:01:32.6]} 26. Kxc1 {[%clk
0:01:11.8]} 26... Qb6 {[%clk 0:01:28.7]} 27. Kb1 {[%clk 0:00:44.7]} 27... Rd8
{[%clk 0:01:00.9]} 28. d7 {[%clk 0:00:44.4]} 28... Qc7 {[%clk 0:00:53.8]} 29.
Bh3 {[%clk 0:00:29.3]} 29... Nf4 {[%clk 0:00:53.6]} 30. Qd2 {[%clk 0:00:06.1]}
30... Nxh3 {[%clk 0:00:53.6]} 31. Rxh3 {[%clk 0:00:07]} 31... Rxd7 {[%clk
0:00:53.9]} 32. Rd3 {[%clk 0:00:07.9]} 32... Rxd3 {[%clk 0:00:53.2]} 33. Qxd3
{[%clk 0:00:08.8]} 33... h6 {[%clk 0:00:43.8]} 34. gxh6 {[%clk 0:00:07.5]} 34...
gxh6 {[%clk 0:00:44.2]} 35. Qd4 {[%clk 0:00:07.3]} 35... Qe7 {[%clk 0:00:37.9]}
36. e5 {[%clk 0:00:07.2]} 36... Qe6 {[%clk 0:00:36.7]} 37. Qf4 {[%clk
0:00:07.7]} 37... Kg7 {[%clk 0:00:35.5]} 38. Qg3+ {[%clk 0:00:06.4]} 38... Qg6+
{[%clk 0:00:16.9]} 39. Qxg6+ {[%clk 0:00:01.4]} 39... Kxg6 {[%clk 0:00:17.8]}
0-1

[Event "*** Titled Tuesday Blitz"]
[Site "Chess.com"]
[Date "2021.04.06"]
[Round "7"]
[White "gumimis"]
[Black "suneebaker"]
[Result "1-0"]
[WhiteElo "2326"]
[BlackElo "2127"]
[TimeControl "180+1"]
[EndTime "11:18:41 PDT"]
[Termination "gumimis won by resignation"]

1. h4 {[%clk 0:02:55.6]} 1... e5 {[%clk 0:02:59.4]} 2. d3 {[%clk 0:02:49.1]}
2... d5 {[%clk 0:02:59]} 3. Nf3 {[%clk 0:02:45.2]} 3... Nc6 {[%clk 0:02:57.8]}
4. g3 {[%clk 0:02:37.2]} 4... Nf6 {[%clk 0:02:52.5]} 5. Bg2 {[%clk 0:02:35.9]}
5... Bc5 {[%clk 0:02:48.7]} 6. c3 {[%clk 0:02:29.1]} 6... Bg4 {[%clk 0:02:44.7]}
7. Nbd2 {[%clk 0:02:26]} 7... e4 {[%clk 0:02:44.1]} 8. dxe4 {[%clk 0:02:23.5]}
8... dxe4 {[%clk 0:02:43.6]} 9. Nh2 {[%clk 0:02:01.9]} 9... Bf5 {[%clk
0:02:37.7]} 10. e3 {[%clk 0:01:58.8]} 10... Ne5 {[%clk 0:02:35.2]} 11. O-O
{[%clk 0:01:58]} 11... O-O {[%clk 0:02:32.9]} 12. b4 {[%clk 0:01:55.5]} 12...
Bb6 {[%clk 0:02:31.8]} 13. c4 {[%clk 0:01:53]} 13... c6 {[%clk 0:02:25.9]} 14.
Bb2 {[%clk 0:01:50.7]} 14... Nd3 {[%clk 0:02:22.7]} 15. Bxf6 {[%clk 0:01:50.4]}
15... Qxf6 {[%clk 0:02:14.8]} 16. Nxe4 {[%clk 0:01:49.3]} 16... Bxe4 {[%clk
0:01:59.4]} 17. Bxe4 {[%clk 0:01:50.2]} 17... Nxb4 {[%clk 0:01:59.2]} 18. a3
{[%clk 0:01:41]} 18... Na6 {[%clk 0:01:58.8]} 19. Ng4 {[%clk 0:01:32.1]} 19...
Qe6 {[%clk 0:01:55.3]} 20. Bc2 {[%clk 0:01:07.9]} 20... Qxc4 {[%clk 0:01:45.3]}
21. Ne5 {[%clk 0:00:53.1]} 21... Qe6 {[%clk 0:01:41.5]} 22. Nf3 {[%clk
0:00:37.6]} 22... Rad8 {[%clk 0:01:39]} 23. Qe2 {[%clk 0:00:30]} 23... Nc7
{[%clk 0:01:34.8]} 24. Bxh7+ {[%clk 0:00:28.4]} 24... Kh8 {[%clk 0:01:32.6]} 25.
Bb1 {[%clk 0:00:28.2]} 25... Nd5 {[%clk 0:01:29.6]} 26. Qc2 {[%clk 0:00:27.7]}
26... g6 {[%clk 0:01:27.8]} 27. Ng5 {[%clk 0:00:25.5]} 27... Qf6 {[%clk
0:01:21.8]} 28. Ba2 {[%clk 0:00:20.4]} 28... Nc3 {[%clk 0:01:13.6]} 29. Bc4
{[%clk 0:00:18.7]} 29... Ba5 {[%clk 0:01:11.8]} 30. Rac1 {[%clk 0:00:18.1]}
30... b5 {[%clk 0:01:06.1]} 31. Bb3 {[%clk 0:00:18]} 31... Kg7 {[%clk
0:00:55.6]} 32. Ne4 {[%clk 0:00:16.6]} 32... Nxe4 {[%clk 0:00:52]} 33. Qxe4
{[%clk 0:00:17.5]} 33... Rd6 {[%clk 0:00:51.7]} 34. Rc5 {[%clk 0:00:17.3]} 34...
Bb6 {[%clk 0:00:49.7]} 35. Rg5 {[%clk 0:00:16.3]} 35... Rfd8 {[%clk 0:00:47]}
36. Qg4 {[%clk 0:00:15.6]} 36... c5 {[%clk 0:00:42.2]} 37. h5 {[%clk 0:00:14.2]}
37... c4 {[%clk 0:00:40.9]} 38. Bc2 {[%clk 0:00:14.4]} 38... Rd2 {[%clk
0:00:40.4]} 39. Bxg6 {[%clk 0:00:11.7]} 39... Kf8 {[%clk 0:00:31.3]} 40. Rf5
{[%clk 0:00:09.4]} 1-0

[Event "*** Titled Tuesday Blitz"]
[Site "Chess.com"]
[Date "2021.04.06"]
[Round "7"]
[White "ENajer77"]
[Black "superchess02"]
[Result "0-1"]
[WhiteElo "2662"]
[BlackElo "2826"]
[TimeControl "180+1"]
[EndTime "11:18:44 PDT"]
[Termination "superchess02 won on time"]

1. d4 {[%clk 0:02:49.1]} 1... Nf6 {[%clk 0:02:59.7]} 2. c4 {[%clk 0:02:48.5]}
2... g6 {[%clk 0:03:00]} 3. Nc3 {[%clk 0:02:48]} 3... Bg7 {[%clk 0:03:00.6]} 4.
e4 {[%clk 0:02:47.8]} 4... d6 {[%clk 0:03:01.3]} 5. Be2 {[%clk 0:02:48.2]} 5...
O-O {[%clk 0:03:01.7]} 6. Be3 {[%clk 0:02:48.7]} 6... e5 {[%clk 0:03:01]} 7. d5
{[%clk 0:02:48.9]} 7... a5 {[%clk 0:03:01.3]} 8. g4 {[%clk 0:02:48.6]} 8... Na6
{[%clk 0:03:01.8]} 9. g5 {[%clk 0:02:49.1]} 9... Nd7 {[%clk 0:03:00.1]} 10. h4
{[%clk 0:02:49.1]} 10... f5 {[%clk 0:02:59.1]} 11. gxf6 {[%clk 0:02:46.5]} 11...
Nxf6 {[%clk 0:02:57.2]} 12. h5 {[%clk 0:02:44]} 12... Nc5 {[%clk 0:02:56]} 13.
hxg6 {[%clk 0:02:44]} 13... hxg6 {[%clk 0:02:56.9]} 14. Bxc5 {[%clk 0:02:26.6]}
14... dxc5 {[%clk 0:02:56.3]} 15. Nf3 {[%clk 0:02:27.1]} 15... Nh5 {[%clk
0:02:48.9]} 16. Rg1 {[%clk 0:01:01]} 16... Nf4 {[%clk 0:02:45]} 17. Qc2 {[%clk
0:00:50.5]} 17... Qf6 {[%clk 0:02:43.1]} 18. Rg3 {[%clk 0:00:49.7]} 18... Bh6
{[%clk 0:02:39]} 19. Nd1 {[%clk 0:00:32.9]} 19... Nxe2 {[%clk 0:01:53.6]} 20.
Qxe2 {[%clk 0:00:31.3]} 20... Bf4 {[%clk 0:01:54.1]} 21. Rg1 {[%clk 0:00:30.3]}
21... Kg7 {[%clk 0:01:46.3]} 22. Nc3 {[%clk 0:00:22.3]} 22... Bd7 {[%clk
0:01:42.6]} 23. Kd1 {[%clk 0:00:22.4]} 23... Bh6 {[%clk 0:01:34.8]} 24. Rg3
{[%clk 0:00:21.9]} 24... Bf4 {[%clk 0:01:35]} 25. Rg1 {[%clk 0:00:22]} 25... Rh8
{[%clk 0:01:34.4]} 26. Kc2 {[%clk 0:00:21.6]} 26... Rh3 {[%clk 0:01:34.3]} 27.
Rg2 {[%clk 0:00:16.4]} 27... Rah8 {[%clk 0:01:15.3]} 28. Rag1 {[%clk 0:00:16.2]}
28... Kf7 {[%clk 0:01:15.3]} 29. Ng5+ {[%clk 0:00:10.7]} 29... Bxg5 {[%clk
0:01:11.5]} 30. Rxg5 {[%clk 0:00:11.2]} 30... R8h6 {[%clk 0:01:08.9]} 31. Nd1
{[%clk 0:00:10.1]} 31... Qf4 {[%clk 0:01:03.3]} 32. R5g2 {[%clk 0:00:07.3]}
32... Ba4+ {[%clk 0:00:59.5]} 33. b3 {[%clk 0:00:07.2]} 33... Bd7 {[%clk
0:00:59.8]} 34. Kb2 {[%clk 0:00:06.7]} 34... a4 {[%clk 0:00:59.3]} 35. Ne3
{[%clk 0:00:02.8]} 35... Qxe4 {[%clk 0:00:54.8]} 36. Rg5 {[%clk 0:00:02.2]}
36... Bf5 {[%clk 0:00:50.2]} 37. Qd2 {[%clk 0:00:01.4]} 37... a3+ {[%clk
0:00:46.3]} 38. Kxa3 {[%clk 0:00:01.2]} 38... Bd7 {[%clk 0:00:38.5]} 39. Kb2
{[%clk 0:00:01.1]} 39... Rh2 {[%clk 0:00:34.8]} 40. R5g2 {[%clk 0:00:01.4]}
40... Rh1 {[%clk 0:00:33.5]} 41. Rxh1 {[%clk 0:00:01.5]} 41... Rxh1 {[%clk
0:00:34.4]} 42. Rg3 {[%clk 0:00:01.8]} 42... b5 {[%clk 0:00:28.9]} 43. Rg5
{[%clk 0:00:02]} 43... Rb1+ {[%clk 0:00:26.8]} 44. Ka3 {[%clk 0:00:01.7]} 44...
b4+ {[%clk 0:00:27.4]} 0-1

[Event "*** Titled Tuesday Blitz"]
[Site "Chess.com"]
[Date "2021.04.06"]
[Round "7"]
[White "lacafi"]
[Black "Eloist"]
[Result "0-1"]
[WhiteElo "2207"]
[BlackElo "2356"]
[TimeControl "180+1"]
[EndTime "11:18:44 PDT"]
[Termination "Eloist won on time"]

1. d4 {[%clk 0:03:00.9]} 1... e6 {[%clk 0:03:00]} 2. Nf3 {[%clk 0:03:01.4]} 2...
Nf6 {[%clk 0:03:00.2]} 3. e3 {[%clk 0:03:01.8]} 3... b6 {[%clk 0:03:00.2]} 4.
Bd3 {[%clk 0:03:02.4]} 4... Bb7 {[%clk 0:03:00.4]} 5. Nbd2 {[%clk 0:03:02.9]}
5... c5 {[%clk 0:03:00.3]} 6. Qe2 {[%clk 0:03:02.9]} 6... g6 {[%clk 0:03:00.1]}
7. O-O {[%clk 0:03:01.9]} 7... Bg7 {[%clk 0:03:00.2]} 8. c3 {[%clk 0:03:02.1]}
8... d5 {[%clk 0:02:58.9]} 9. dxc5 {[%clk 0:02:59.5]} 9... bxc5 {[%clk
0:02:58.3]} 10. e4 {[%clk 0:03:00.1]} 10... O-O {[%clk 0:02:58]} 11. e5 {[%clk
0:02:55.9]} 11... Nfd7 {[%clk 0:02:57.2]} 12. Re1 {[%clk 0:02:56.2]} 12... Nc6
{[%clk 0:02:55.5]} 13. Nf1 {[%clk 0:02:48.3]} 13... Ndxe5 {[%clk 0:02:53.9]} 14.
Nxe5 {[%clk 0:02:45.7]} 14... Nxe5 {[%clk 0:02:53.9]} 15. Bc2 {[%clk 0:02:44]}
15... Qb6 {[%clk 0:02:45.8]} 16. h4 {[%clk 0:02:41.6]} 16... Ba6 {[%clk
0:02:34.5]} 17. Qe3 {[%clk 0:02:32.4]} 17... d4 {[%clk 0:02:31.2]} 18. Qh3
{[%clk 0:02:15.5]} 18... d3 {[%clk 0:02:24.5]} 19. Bd1 {[%clk 0:02:14.7]} 19...
Rfd8 {[%clk 0:02:19.4]} 20. Nd2 {[%clk 0:02:13.9]} 20... Nc4 {[%clk 0:02:13]}
21. Rb1 {[%clk 0:02:00.8]} 21... Nxd2 {[%clk 0:02:08.2]} 22. Bxd2 {[%clk
0:02:00.5]} 22... c4 {[%clk 0:02:06.2]} 23. h5 {[%clk 0:01:59.3]} 23... Bb7
{[%clk 0:02:03.2]} 24. hxg6 {[%clk 0:01:52.8]} 24... hxg6 {[%clk 0:02:02.5]} 25.
Re3 {[%clk 0:01:43.2]} 25... a5 {[%clk 0:01:50.9]} 26. Bg4 {[%clk 0:01:31.5]}
26... f5 {[%clk 0:01:43.7]} 27. Bd1 {[%clk 0:01:16.5]} 27... e5 {[%clk
0:01:38.2]} 28. Rg3 {[%clk 0:01:08.4]} 28... Kf7 {[%clk 0:01:37.7]} 29. Qh4
{[%clk 0:01:03.2]} 29... Rh8 {[%clk 0:01:31.7]} 30. Qxc4+ {[%clk 0:01:02.5]}
30... Qe6 {[%clk 0:01:20.2]} 31. Qc7+ {[%clk 0:00:26.4]} 31... Qe7 {[%clk
0:01:13.4]} 32. Bb3+ {[%clk 0:00:26.5]} 32... Kf8 {[%clk 0:01:10.6]} 33. Qxe7+
{[%clk 0:00:23.1]} 33... Kxe7 {[%clk 0:01:11.5]} 34. Rxg6 {[%clk 0:00:23.5]}
34... Bf6 {[%clk 0:01:03.6]} 35. Bc4 {[%clk 0:00:13.1]} 35... Rac8 {[%clk
0:00:50.5]} 36. Bxd3 {[%clk 0:00:11.6]} 36... Rcd8 {[%clk 0:00:50.4]} 37. Bxf5
{[%clk 0:00:05.8]} 37... Rxd2 {[%clk 0:00:49.5]} 38. c4 {[%clk 0:00:06.2]} 38...
Rhd8 {[%clk 0:00:42.4]} 39. a3 {[%clk 0:00:04.7]} 39... Rd1+ {[%clk 0:00:41.3]}
40. Rxd1 {[%clk 0:00:05.4]} 40... Rxd1+ {[%clk 0:00:41]} 41. Kh2 {[%clk
0:00:06.1]} 41... a4 {[%clk 0:00:32.7]} 42. Rh6 {[%clk 0:00:06.1]} 42... Bc6
{[%clk 0:00:21.5]} 43. Rh7+ {[%clk 0:00:03.9]} 43... Kd6 {[%clk 0:00:21.5]} 44.
Rf7 {[%clk 0:00:01.6]} 44... Bg5 {[%clk 0:00:19.9]} 0-1

[Event "*** Titled Tuesday Blitz"]
[Site "Chess.com"]
[Date "2021.04.06"]
[Round "7"]
[White "anon6121824"]
[Black "exoticprincess"]
[Result "0-1"]
[WhiteElo "2783"]
[BlackElo "2935"]
[TimeControl "180+1"]
[EndTime "11:18:47 PDT"]
[Termination "exoticprincess won by resignation"]

1. e4 {[%clk 0:03:00.9]} 1... e5 {[%clk 0:03:00.1]} 2. Nf3 {[%clk 0:02:59.6]}
2... Nf6 {[%clk 0:03:00.5]} 3. Nxe5 {[%clk 0:02:57.2]} 3... d6 {[%clk
0:03:00.6]} 4. Nf3 {[%clk 0:02:56.9]} 4... Nxe4 {[%clk 0:03:01.1]} 5. c3 {[%clk
0:02:57.8]} 5... d5 {[%clk 0:02:58.4]} 6. d3 {[%clk 0:02:56.8]} 6... Nf6 {[%clk
0:02:57.8]} 7. d4 {[%clk 0:02:57.3]} 7... h6 {[%clk 0:02:58.3]} 8. Bd3 {[%clk
0:02:57.7]} 8... Bd6 {[%clk 0:02:58.5]} 9. O-O {[%clk 0:02:57.5]} 9... O-O
{[%clk 0:02:59]} 10. h3 {[%clk 0:02:56.9]} 10... Re8 {[%clk 0:02:51.7]} 11. Re1
{[%clk 0:02:57]} 11... b6 {[%clk 0:02:51.1]} 12. Nbd2 {[%clk 0:02:54]} 12... c5
{[%clk 0:02:51.1]} 13. Ne5 {[%clk 0:02:50.1]} 13... Nbd7 {[%clk 0:02:43.2]} 14.
Ndf3 {[%clk 0:02:47.4]} 14... Qc7 {[%clk 0:02:41.6]} 15. Bf4 {[%clk 0:02:45.2]}
15... Bb7 {[%clk 0:02:41.1]} 16. Qe2 {[%clk 0:02:35.3]} 16... Nf8 {[%clk
0:02:38.8]} 17. Rad1 {[%clk 0:02:32.7]} 17... Ne6 {[%clk 0:02:38.6]} 18. Bh2
{[%clk 0:02:30.8]} 18... Ne4 {[%clk 0:02:33.1]} 19. dxc5 {[%clk 0:02:19.2]}
19... N6xc5 {[%clk 0:02:32.5]} 20. Bb1 {[%clk 0:02:12.1]} 20... f6 {[%clk
0:02:16.6]} 21. Ng4 {[%clk 0:02:01.5]} 21... Bxh2+ {[%clk 0:02:12.7]} 22. Ngxh2
{[%clk 0:02:02.4]} 22... Nxc3 {[%clk 0:02:09.1]} 23. Qc2 {[%clk 0:01:34.2]}
23... Nxb1 {[%clk 0:01:51.4]} 24. Qxb1 {[%clk 0:01:31.1]} 24... Rxe1+ {[%clk
0:01:37.7]} 25. Rxe1 {[%clk 0:01:29.4]} 25... Ne4 {[%clk 0:01:38.2]} 26. Ng4
{[%clk 0:01:23.6]} 26... Rc8 {[%clk 0:01:24.3]} 27. Ne3 {[%clk 0:01:18.7]} 27...
Qc5 {[%clk 0:01:24.3]} 28. Qd3 {[%clk 0:01:17.9]} 28... Rd8 {[%clk 0:01:12]} 29.
Rd1 {[%clk 0:01:13.4]} 29... Qb4 {[%clk 0:01:08]} 30. Qc2 {[%clk 0:00:53.5]}
30... Rc8 {[%clk 0:01:07.3]} 31. Qe2 {[%clk 0:00:42.2]} 31... Rd8 {[%clk
0:01:06.3]} 32. Nd4 {[%clk 0:00:40.7]} 32... Kh8 {[%clk 0:00:57.7]} 33. a3
{[%clk 0:00:40.7]} 33... Qa4 {[%clk 0:00:54.1]} 34. Qg4 {[%clk 0:00:39.6]} 34...
Qd7 {[%clk 0:00:53.2]} 35. Nef5 {[%clk 0:00:37.7]} 35... Bc8 {[%clk 0:00:46.9]}
36. Qf4 {[%clk 0:00:35.1]} 36... Qf7 {[%clk 0:00:44]} 37. Qe3 {[%clk 0:00:33.2]}
37... Bxf5 {[%clk 0:00:44]} 38. Nxf5 {[%clk 0:00:31.4]} 38... Re8 {[%clk
0:00:44.5]} 39. Qd4 {[%clk 0:00:28.3]} 39... Nc5 {[%clk 0:00:32.6]} 40. Ne3
{[%clk 0:00:27.7]} 40... Rd8 {[%clk 0:00:28.3]} 41. Nxd5 {[%clk 0:00:25.7]}
41... Ne6 {[%clk 0:00:28.2]} 42. Qe4 {[%clk 0:00:23.8]} 42... Nc7 {[%clk
0:00:28.3]} 43. Nc3 {[%clk 0:00:21.9]} 43... Rxd1+ {[%clk 0:00:28.7]} 44. Nxd1
{[%clk 0:00:22.8]} 44... Ne6 {[%clk 0:00:28.1]} 45. Ne3 {[%clk 0:00:21.4]} 45...
Nc5 {[%clk 0:00:28.2]} 46. Qa8+ {[%clk 0:00:19.8]} 46... Kh7 {[%clk 0:00:28.1]}
47. Qc6 {[%clk 0:00:20]} 47... Qb3 {[%clk 0:00:25.9]} 48. Nf5 {[%clk 0:00:16]}
48... Qxb2 {[%clk 0:00:24.4]} 49. f4 {[%clk 0:00:14.9]} 49... Qb1+ {[%clk
0:00:24.4]} 0-1